bitfinex/quotes_ETHUSD_20250129
["timestamp","ask_amount","ask_price","bid_price","bid_amount"]
[1738186915460,1e-05,3158.4,3157.8,3.98372]
[1738186915670,3.16625,3158.4,3157.7,3.1668]
[1738186915983,3.16652,3158.1,3157.4,4.61803321]
[1738186916304,3.16663,3158.0,3157.4,3.98414]
[1738186916512,3.16669,3157.9,3157.4,1.215414]
[1738186916679,3.16663,3158.0,3157.2,3.16734]
[1738186917072,3.9917,3158.1,3157.5,3.16704]
[1738186917330,0.8252,3158.1,3156.4,0.7828]
[1738186917634,0.8252,3158.1,3156.4,3.7828]
[1738186917851,0.8252,3158.1,3157.7,3.16685]
[1738186918142,3.1662,3158.4,3157.7,3.16681]
[1738186918519,3.1662,3158.4,3157.5,3.16702]
[1738186918520,3.1662,3158.4,3157.6,3.16694]
[1738186918717,3.16639,3158.2,3157.6,3.16694]
[1738186918909,3.16639,3158.2,3157.7,3.16684]
[1738186919298,3.16626,3158.3,3157.7,3.16679]
[1738186919492,3.16626,3158.3,3157.6,0.633396]
[1738186919722,0.771,3158.5,3157.6,0.633396]
[1738186919895,3.93706,3158.5,3157.8,3.16668]
[1738186920097,1.164706,3158.5,3157.6,3.16694]
[1738186920356,3.16631,3158.3,3157.7,3.16682]
[1738186920498,0.771,3158.5,3157.4,3.16711]
[1738186920694,3.16657,3158.0,3157.2,3.16732]
[1738186920903,3.16656,3158.0,3157.4,3.1671]
[1738186921108,0.771,3158.5,3157.4,0.633442]
[1738186921439,0.771,3158.9,3158.4,3.16615]
[1738186921623,3.16511,3159.5,3158.8,3.16569]
[1738186921825,3.9359,3159.7,3158.0,1.1994583]
[1738186922030,0.771,3159.7,3159.1,3.16544]
[1738186922226,3.16522,3159.4,3158.4,3.16616]
[1738186922551,3.16532,3159.3,3158.6,3.16588]
[1738186922764,0.771,3159.7,3159.1,3.16544]
[1738186923055,3.16496,3159.6,3159.1,3.16542]
[1738186923243,3.16496,3159.6,3158.9,3.16561]
[1738186923439,3.16537,3159.2,3158.6,3.16594]
[1738186923648,3.16516,3159.4,3158.7,3.16582]
[1738186923812,3.16527,3159.3,3158.8,3.16574]
[1738186924433,3.16527,3159.3,3158.5,3.16601]
[1738186924647,0.316516,3159.4,3158.6,3.16595]
[1738186924648,3.16537,3159.2,3158.6,3.16595]
[1738186924829,0.316516,3159.4,3158.3,3.7515]
[1738186925040,3.481686,3159.4,3158.7,3.1658]
[1738186925258,3.481686,3159.4,3158.6,3.16586]
[1738186925259,3.16528,3159.3,3158.6,3.16586]
[1738186925463,3.16598,3158.6,3158.0,3.16653]
[1738186925767,3.16598,3158.6,3157.9,3.16663]
[1738186925768,3.16607,3158.5,3157.9,3.16663]
[1738186925918,3.16607,3158.5,3158.0,3.16656]
[1738186926120,3.16589,3158.7,3157.8,0.7515]
[1738186926343,3.16569,3158.9,3158.2,3.16627]
[1738186926543,3.16567,3158.9,3158.2,3.16627]
[1738186926755,3.0,3159.0,3158.5,3.16604]
[1738186926968,0.7941,3159.1,3157.9,0.0075]
[1738186927117,3.16505,3159.5,3158.6,3.16592]
[1738186927318,3.16558,3159.0,3158.4,3.16608]
[1738186927517,0.7737,3159.6,3157.9,3.16657]
[1738186927518,3.16548,3159.1,3157.9,3.16666]
[1738186927714,3.16573,3158.9,3158.3,3.16624]
[1738186928014,0.316548,3159.0,3158.3,3.16622]
[1738186928249,3.16603,3158.6,3157.9,3.87584]
[1738186928445,3.16603,3158.6,3158.0,3.16649]
[1738186929160,3.16658,3158.0,3157.1,35.0]
[1738186929313,3.16682,3157.8,3157.0,3.16756]
[1738186929521,3.99302,3157.8,3157.0,3.16756]
[1738186929719,3.16686,3157.7,3156.9,0.8148]
[1738186929953,0.8262,3157.8,3156.6,3.16792]
[1738186930119,3.16721,3157.4,3156.8,3.16774]
[1738186930318,0.8262,3157.8,3156.4,0.808]
[1738186930319,0.8262,3157.8,3157.3,3.16719]
[1738186930816,0.8262,3157.8,3157.4,3.16714]
[1738186931216,0.8262,3157.8,3157.2,3.16727]
[1738186931445,3.99302,3157.8,3157.2,3.16727]
[1738186931650,3.16715,3157.5,3156.8,3.16776]
[1738186931918,3.16713,3157.5,3156.9,3.16766]
[1738186932119,3.16713,3157.5,3156.9,3.16761]
[1738186932410,3.16687,3157.7,3157.0,3.1675]
[1738186932577,3.16715,3157.5,3157.0,3.16754]
[1738186932775,3.16727,3157.3,3156.8,3.16776]
[1738186932970,3.16713,3157.5,3157.0,3.16753]
[1738186933214,3.16713,3157.5,3156.4,3.97613]
[1738186933215,3.16713,3157.5,3156.7,3.1678]
[1738186933504,3.16735,3157.3,3156.6,3.16792]
[1738186933659,3.16744,3157.2,3156.6,3.16792]
[1738186933859,3.16716,3157.4,3156.7,3.16779]
[1738186934086,0.316713,3157.5,3156.5,3.16802]
[1738186934286,0.7736,3157.4,3155.7,3.16882]
[1738186934504,3.16842,3156.2,3155.5,3.16903]
[1738186934726,3.16848,3156.1,3155.3,0.62274113]
[1738186934867,3.1684,3156.2,3155.5,3.16899]
[1738186935061,0.7661,3156.5,3156.1,3.16843]
[1738186935263,0.7676,3156.9,3155.9,3.16866]
[1738186935462,3.16814,3156.5,3155.7,3.16885]
[1738186935717,0.7676,3156.9,3155.2,0.8109]
[1738186935898,3.16783,3156.8,3156.0,3.16849]
[1738186936221,3.16783,3156.8,3155.4,3.16917]
[1738186936222,3.16855,3156.1,3155.4,3.16907]
[1738186936419,3.16873,3155.9,3155.1,3.16938]
[1738186936618,3.16858,3156.0,3154.8,0.7957]
[1738186936912,3.1687,3155.9,3155.2,3.16928]
[1738186937211,3.16856,3156.0,3155.3,3.1692]
[1738186937364,3.16866,3155.9,3155.3,3.1692]
[1738186937564,3.16867,3155.9,3155.3,3.1692]
[1738186937796,0.7834,3156.2,3155.3,0.633865]
[1738186937975,0.7834,3156.2,3155.4,3.16914]
[1738186938475,3.16847,3156.1,3155.4,3.16909]
[1738186938662,3.16888,3155.7,3155.1,3.16938]
[1738186938859,3.16888,3155.7,3154.9,3.16967]
[1738186939075,6.16879,3155.8,3155.2,3.16929]
[1738186939316,3.0,3155.8,3155.2,3.16929]
[1738186939526,3.95184,3156.2,3155.5,3.16904]
[1738186939665,0.7834,3156.2,3155.4,3.16916]
[1738186939867,0.7834,3156.2,3155.8,3.16868]
[1738186940065,3.1682,3156.4,3155.7,3.16886]
[1738186940294,3.16829,3156.3,3155.7,3.16886]
[1738186940611,0.8091,3156.6,3156.2,3.16834]
[1738186941967,3.0,3156.9,3156.3,3.16817]
[1738186942327,0.7966,3157.0,3156.5,3.16803]
[1738186942462,0.7966,3157.4,3156.7,3.16784]
[1738186942665,0.7966,3157.4,3156.8,3.16768]
[1738186943092,0.7966,3157.4,3157.0,3.16755]
[1738186943296,0.7966,3157.8,3157.2,3.16728]
[1738186943483,3.96343,3157.8,3157.2,3.16728]
[1738186943827,3.96343,3157.8,3157.4,3.16713]
[1738186943828,0.7966,3157.8,3157.4,3.16713]
[1738186943999,0.7966,3157.8,3157.3,3.16723]
[1738186944309,3.16762,3157.0,3156.3,3.16819]
[1738186944604,0.7966,3156.9,3156.2,0.434]
[1738186944811,3.16814,3156.5,3156.2,0.434]
[1738186945011,3.16812,3156.5,3156.2,0.434]
[1738186945209,3.16818,3156.4,3156.2,0.434]
[1738186945414,3.1679,3156.7,3156.2,0.434]
[1738186945614,3.16797,3156.6,3156.2,0.434]
[1738186945922,3.1679,3156.7,3156.2,0.434]
[1738186946074,3.16799,3156.6,3156.2,0.434]
[1738186946274,0.7966,3156.9,3156.2,0.434]
[1738186946474,3.9643,3156.9,3156.2,3.60232]
[1738186946701,3.16788,3156.7,3156.2,3.60232]
[1738186947177,3.16781,3156.8,3156.2,3.60232]
[1738186947428,4.36073,3156.9,3156.3,3.16818]
[1738186947826,3.1676,3157.0,3156.2,3.60234]
[1738186948031,3.7571,3157.2,3156.2,0.434]
[1738186948336,3.7571,3157.2,3156.4,3.1681]
[1738186948496,3.16758,3157.0,3156.4,3.1681]
[1738186949643,3.16723,3157.4,3156.8,3.16772]
[1738186949800,3.16734,3157.3,3156.3,3.16826]
[1738186950141,0.709143,3157.4,3156.3,3.16818]
[1738186950347,3.16783,3156.8,3156.1,3.1684]
[1738186950514,3.16783,3156.8,3156.2,3.16836]
[1738186951171,3.0,3157.0,3156.2,3.16836]
[1738186951341,3.16777,3156.8,3156.1,3.16838]
[1738186951526,0.7571,3157.6,3155.8,0.7724]
[1738186951527,3.16806,3156.5,3155.9,3.16865]
[1738186951729,3.16806,3156.5,3155.8,0.7724]
[1738186951730,0.7571,3156.7,3155.8,0.7724]
[1738186951933,3.0,3157.0,3156.5,3.16805]
[1738186952320,3.0,3157.0,3156.3,3.16821]
[1738186952530,3.16776,3156.9,3156.3,3.16818]
[1738186952936,1.009237,3156.9,3155.9,3.16866]
[1738186953153,3.16832,3156.3,3155.7,3.16879]
[1738186953368,3.1682,3156.4,3155.8,3.16869]
[1738186953657,3.1682,3156.4,3155.7,3.16879]
[1738186953658,3.16827,3156.3,3155.7,3.16879]
[1738186953855,3.98017,3156.3,3155.7,3.16879]
[1738186954026,3.16848,3156.1,3155.5,3.16904]
[1738186954228,0.714865,3156.1,3154.0,2.508]
[1738186954472,3.16945,3155.2,3154.6,3.16997]
[1738186954769,3.16943,3155.2,3154.6,3.16991]
[1738186955117,3.16957,3155.0,3154.5,0.803]
[1738186955356,3.16943,3155.2,3154.6,3.16996]
[1738186955518,3.16919,3155.4,3154.8,3.16975]
[1738186955519,3.0,3155.3,3154.8,3.16975]
[1738186955717,3.0,3155.3,3154.9,3.16961]
[1738186955960,3.0,3155.3,3154.8,3.16975]
[1738186956170,3.0,3155.3,3154.6,3.16997]
[1738186956483,3.0,3155.3,3154.8,3.16969]
[1738186956620,3.0,3155.3,3154.9,3.16966]
[1738186956823,0.8119,3156.0,3154.5,0.803]
[1738186957047,6.16904,3155.6,3154.5,0.803]
[1738186957253,3.16918,3155.4,3154.9,3.1696]
[1738186957631,3.0,3155.7,3155.1,3.16944]
[1738186957961,3.0,3155.7,3155.2,3.16927]
[1738186958271,3.98051,3156.0,3155.4,3.16912]
[1738186958423,3.566711,3155.9,3155.4,3.16912]
[1738186958855,6.566721,3155.9,3155.4,3.16912]
[1738186959028,3.16839,3156.2,3154.7,0.565]
[1738186959231,3.16839,3156.2,3155.6,3.16891]
[1738186959731,3.0,3156.1,3155.6,3.16891]
[1738186960254,3.0,3156.1,3155.5,3.16904]
[1738186960454,3.0,3156.1,3155.6,3.16896]
[1738186960822,3.16839,3156.2,3155.6,3.16896]
[1738186961364,3.16857,3156.0,3155.4,3.16908]
[1738186961573,3.16857,3156.0,3155.4,3.16913]
[1738186961942,3.16857,3156.0,3154.8,0.8013]
[1738186961943,3.16908,3155.5,3154.8,0.8013]
[1738186962140,3.16973,3154.9,3154.3,3.1702]
[1738186962527,3.0,3155.6,3154.4,3.17011]
[1738186962528,3.16897,3155.6,3154.4,3.17011]
[1738186962688,3.16961,3155.0,3154.2,3.17031]
[1738186962865,3.16995,3154.7,3154.0,3.17049]
[1738186963179,3.99713,3154.8,3153.7,0.7574]
[1738186963180,0.8273,3154.8,3154.4,3.17009]
[1738186963381,3.1696,3155.0,3154.4,3.17009]
[1738186964978,0.8273,3155.2,3154.2,3.17032]
[1738186965182,3.17016,3154.5,3153.8,3.1707]
[1738186965359,6.34032,3154.5,3153.8,3.1707]
[1738186965690,3.17016,3154.5,3153.9,3.1706]
[1738186965875,3.17016,3154.5,3153.9,6.34118]
[1738186966075,6.33985,3154.7,3154.0,3.17054]
[1738186966299,6.33985,3154.7,3153.9,3.17058]
[1738186966300,3.17012,3154.5,3153.9,3.17058]
[1738186966607,3.17045,3154.2,3153.5,3.17099]
[1738186966899,3.17025,3154.4,3153.7,3.1708]
[1738186967108,3.17038,3154.2,3153.7,3.1708]
[1738186967406,0.7731,3154.6,3154.2,3.17031]
[1738186967708,0.7731,3154.6,3154.2,3.17035]
[1738186967884,3.17003,3154.6,3153.9,3.1706]
[1738186968208,3.17008,3154.5,3153.9,3.1706]
[1738186968663,3.17025,3154.4,3153.9,3.17067]
[1738186968857,3.17025,3154.4,3153.7,3.17086]
[1738186969057,0.8152,3154.1,3153.3,0.8284]
[1738186969405,3.17086,3153.8,3153.2,3.17129]
[1738186969707,3.17073,3153.9,3153.3,3.17126]
[1738186970054,3.9857,3154.1,3153.4,3.17111]
[1738186970208,3.17058,3154.0,3153.4,3.17111]
[1738186970573,4.38427,3154.1,3153.6,3.17096]
[1738186970778,1.21377,3154.1,3153.6,3.17096]
[1738186971011,3.98568,3154.1,3153.6,3.17096]
[1738186971910,0.7667,3154.5,3154.1,3.17039]
[1738186972063,0.7667,3154.5,3154.0,3.17057]
[1738186972264,0.7667,3154.5,3154.1,3.17038]
[1738186972697,0.7667,3154.5,3154.2,3.17036]
[1738186972903,3.0,3154.6,3154.3,3.17019]
[1738186973602,3.0,3154.6,3154.1,3.17041]
[1738186973817,3.0,3154.6,3154.2,3.17037]
[1738186974117,3.0,3154.6,3154.2,3.17031]
[1738186974506,3.9519,3154.9,3154.3,3.17024]
[1738186974707,6.16977,3154.8,3154.3,3.17024]
[1738186975284,1.012167,3154.8,3154.1,3.17041]
[1738186975502,3.16993,3154.7,3154.2,3.17036]
[1738186975702,3.17,3154.6,3154.0,3.17053]
[1738186976026,3.17,3154.6,3153.9,3.1706]
[1738186976027,3.17,3154.6,3154.1,3.1704]
[1738186976603,3.16979,3154.8,3154.1,3.1704]
[1738186976806,3.16989,3154.7,3154.1,3.1704]
[1738186977132,6.33964,3154.8,3154.2,3.17032]
[1738186977439,0.712184,3154.8,3154.0,3.17049]
[1738186977608,3.17003,3154.6,3153.9,3.17063]
[1738186977810,3.881984,3154.8,3154.3,3.17022]
[1738186978636,3.881984,3154.8,3153.7,3.92984]
[1738186978637,3.881984,3154.8,3154.1,3.17046]
[1738186978793,3.17,3154.6,3154.1,3.17046]
[1738186979842,0.7051984,3154.6,3153.7,3.17078]
[1738186980057,3.17039,3154.2,3153.7,3.17078]
[1738186980236,0.83,3154.1,3152.9,0.7644]
[1738186980551,0.83,3154.1,3152.9,3.17161]
[1738186980552,3.17115,3153.5,3152.9,3.17161]
[1738186980698,3.17115,3153.5,3152.9,3.17165]
[1738186980894,3.17115,3153.5,3153.0,3.17155]
[1738186981368,3.17115,3153.5,3152.9,3.17167]
[1738186981495,3.0,3153.6,3153.1,3.17146]
[1738186981697,0.83,3153.8,3153.3,3.17126]
[1738186981925,0.83,3153.8,3153.4,3.17117]
[1738186982163,0.83,3153.8,3153.3,3.17119]
[1738186982461,0.83,3153.8,3153.1,3.17141]
[1738186982597,3.17091,3153.7,3153.1,6.34282]
[1738186982797,0.83,3153.8,3153.3,3.17127]
[1738186983046,0.83,3153.8,3152.9,3.17165]
[1738186983047,3.17105,3153.6,3152.9,3.17165]
[1738186983191,3.17105,3153.6,3152.9,3.1716]
[1738186983398,6.3421,3153.6,3153.0,3.17156]
[1738186983624,3.17105,3153.6,3153.0,3.17156]
[1738186983823,3.1715,3153.1,3152.5,0.7644]
[1738186984194,3.1715,3153.1,3152.4,3.1721]
[1738186984401,6.34304,3153.1,3152.5,3.17208]
[1738186984595,3.17131,3153.3,3152.8,3.17172]
[1738186984842,3.805553,3153.3,3152.8,3.17172]
[1738186985015,3.17149,3153.1,3152.6,3.17195]
[1738186985957,3.17145,3153.2,3152.6,3.17195]
[1738186986243,3.17145,3153.2,3152.6,6.34387]
[1738186986441,3.17145,3153.2,3152.7,3.17187]
[1738186986644,0.3747411,3153.2,3152.4,3.17212]
[1738186986848,3.17152,3153.1,3152.5,3.17199]
[1738186987003,3.17152,3153.1,3152.4,3.17212]
[1738186987199,3.93669,3153.0,3152.4,3.17212]
[1738186987503,0.710821,3152.9,3152.5,3.172]
[1738186987714,0.7651,3153.0,3152.1,0.7845]
[1738186987715,0.7651,3153.0,3152.7,3.17182]
[1738186988006,3.93642,3153.3,3152.6,3.17192]
[1738186988242,0.7651,3153.3,3152.9,3.17161]
[1738186988447,3.17139,3153.2,3152.7,3.17185]
[1738186988615,3.17149,3153.1,3152.5,3.17202]
[1738186988823,3.17149,3153.1,3152.6,3.17196]
[1738186989034,3.17149,3153.1,3152.5,3.17202]
[1738186989225,3.17149,3153.1,3152.6,3.17197]
[1738186989420,3.17149,3153.1,3152.5,3.17202]
[1738186989616,0.393649,3153.2,3152.7,3.17182]
[1738186989864,3.565039,3153.2,3152.5,3.17202]
[1738186990022,0.7501469,3153.1,3152.5,3.172]
[1738186990361,0.7501469,3153.1,3152.6,3.17192]
[1738186990523,3.9216469,3153.1,3152.6,3.17192]
[1738186990723,3.9216469,3153.1,3152.5,3.17201]
[1738186991144,0.7501469,3153.1,3152.6,3.17194]
[1738186991545,0.39215269,3153.0,3152.1,0.005]
[1738186991867,3.17238,3152.2,3152.1,0.005]
[1738186992081,6.97838,3152.2,3152.1,0.005]
[1738186992581,3.565,3152.1,3150.6,0.827]
[1738186992792,3.17344,3151.2,3150.6,4.00098]
[1738186993073,3.1737,3150.9,3150.4,3.17418]
[1738186993224,4.562619,3150.9,3150.4,3.17418]
[1738186993584,3.1742,3150.4,3149.8,3.17476]
[1738186994081,3.1742,3150.4,3149.7,3.17481]
[1738186994229,3.17402,3150.6,3150.0,3.17457]
[1738186994425,0.317402,3150.6,3150.2,3.17433]
[1738186994673,3.491432,3150.6,3149.8,3.1748]
[1738186995027,1.388919,3150.9,3149.6,0.8184]
[1738186995222,3.37232,3152.3,3149.6,0.8184]
[1738186995223,3.17326,3151.4,3150.7,3.17387]
[1738186995437,3.17309,3151.5,3150.5,3.17403]
[1738186995687,0.63513517,3151.6,3150.0,3.17459]
[1738186995688,3.17365,3151.0,3150.3,3.17423]
[1738186995974,3.17436,3150.3,3149.6,3.17493]
[1738186996126,0.8335,3150.2,3149.2,3.17538]
[1738186996331,0.0075,3150.0,3148.5,0.32977736]
[1738186996529,3.17501,3149.6,3148.9,3.17567]
[1738186996937,3.17517,3149.5,3148.8,3.17576]
[1738186997140,0.7726,3149.4,3148.8,3.17576]
[1738186997762,0.7726,3149.4,3149.1,3.1755]
[1738186997957,3.94784,3149.4,3148.8,3.17572]
[1738186998141,3.17532,3149.3,3148.4,3.17618]
[1738186998351,3.17532,3149.3,3148.6,3.17595]
[1738186998653,3.9511778,3149.3,3148.7,3.17589]
[1738186998853,3.9511778,3149.3,3148.1,0.1622983]
[1738186998854,0.7758178,3149.3,3148.2,38.17636]
[1738186999056,3.17543,3149.2,3148.1,0.1622983]
[1738186999371,0.7758178,3149.3,3148.8,3.17574]
[1738186999666,3.9511978,3149.3,3148.5,3.17601]
[1738186999878,0.47236278,3149.2,3148.6,3.17597]
[1738187000029,3.7726,3149.4,3148.9,3.17569]
[1738187000229,6.94782,3149.4,3148.7,3.1759]
[1738187000723,3.18286,3149.3,3148.5,3.17609]
[1738187000940,3.17536,3149.3,3148.6,3.17598]
[1738187001169,3.17554,3149.1,3148.4,3.17617]
[1738187001370,3.81063,3149.1,3148.4,3.17617]
[1738187001694,3.81063,3149.1,3148.5,3.17602]
[1738187002156,3.17561,3149.0,3148.3,6.35253]
[1738187002364,3.17561,3149.0,3148.1,0.9915983]
[1738187002365,3.17571,3148.9,3148.1,0.1622983]
[1738187002661,3.94763,3148.7,3148.1,0.1622983]
[1738187002853,0.394763,3148.6,3148.1,0.1622983]
[1738187003052,3.17624,3148.4,3148.1,0.1622983]
[1738187003566,3.17618,3148.5,3148.1,0.1622983]
[1738187003771,0.394763,3148.6,3148.1,0.1622983]
[1738187003923,0.394763,3148.6,3148.1,3.3387283]
[1738187004129,3.570783,3148.6,3148.1,0.1622983]
[1738187004382,3.7342483,3148.5,3148.1,0.1622983]
[1738187004537,0.7342483,3148.5,3148.2,3.17641]
[1738187004743,0.7717,3148.7,3148.3,3.17622]
[1738187005369,0.7717,3148.7,3148.5,3.17602]
[1738187005672,1.44949,3149.1,3148.7,3.17589]
[1738187005839,3.17562,3149.0,3148.3,3.17631]
[1738187006038,4.62509,3149.1,3148.3,3.17631]
[1738187006234,4.62509,3149.1,3148.5,3.17607]
[1738187006435,0.462509,3149.0,3148.5,3.17607]
[1738187006640,0.8144,3149.1,3148.7,3.1759]
[1738187006841,0.8144,3149.1,3148.9,3.17563]
[1738187007037,3.96741,3149.5,3148.7,3.1759]
[1738187007331,3.7923,3149.5,3148.9,3.17569]
[1738187007817,6.96749,3149.5,3148.9,3.17569]
[1738187008253,0.696749,3149.4,3148.9,3.17569]
[1738187008651,0.696749,3149.4,3149.0,3.17557]
[1738187008856,0.7923,3149.5,3149.0,3.17557]
[1738187009352,0.7923,3149.5,3149.2,3.17533]
[1738187009569,3.99452,3149.9,3149.3,3.17524]
[1738187009751,0.8198,3149.9,3149.3,3.17524]
[1738187010079,0.8198,3149.9,3149.4,3.17511]
[1738187010270,1.519232,3149.9,3149.4,3.17511]
[1738187010441,3.8198,3149.9,3149.4,3.17511]
[1738187010776,0.8198,3149.9,3149.5,3.17509]
[1738187010949,0.8198,3149.9,3149.5,3.17505]
[1738187011150,3.17514,3149.5,3148.8,3.17574]
[1738187011337,0.807,3149.1,3148.4,3.17621]
[1738187011544,0.807,3149.1,3148.1,0.9653983]
[1738187011545,0.398241,3149.0,3148.1,0.1622983]
[1738187011878,3.17601,3148.6,3148.1,0.1622983]
[1738187012293,3.17625,3148.4,3148.1,0.1622983]
[1738187012446,3.0,3148.7,3148.1,0.1622983]
[1738187012815,3.17628,3148.4,3148.1,0.1622983]
[1738187012956,0.807,3148.3,3148.1,0.1622983]
[1738187013595,3.8246,3148.7,3148.1,3.3387983]
[1738187013949,4.00051,3148.7,3148.1,3.3387983]
[1738187014144,4.00051,3148.7,3148.1,0.1622983]
[1738187014353,1.224651,3148.7,3148.1,0.1622983]
[1738187014572,0.8246,3148.7,3148.1,3.3387883]
[1738187014764,0.8246,3148.7,3148.2,3.17639]
[1738187015503,0.8246,3148.7,3148.3,3.17629]
[1738187015674,3.0,3149.0,3148.4,3.17621]
[1738187016048,6.17562,3149.0,3148.2,3.1764]
[1738187016389,3.97632,3149.1,3148.5,3.17608]
[1738187016587,0.8008,3149.1,3148.6,3.17594]
[1738187016794,0.8008,3149.1,3148.5,3.17608]
[1738187017285,3.1757,3149.0,3148.2,3.17639]
[1738187017446,0.8008,3149.1,3148.6,3.17601]
[1738187017646,3.0,3149.3,3148.7,3.17591]
[1738187017854,6.17531,3149.3,3148.7,3.17591]
[1738187018088,6.17531,3149.3,3148.6,3.17594]
[1738187018290,3.17551,3149.1,3148.2,3.51023883]
[1738187018497,3.17551,3149.1,3148.5,3.1761]
[1738187018675,3.17551,3149.1,3148.2,0.33386883]
[1738187018849,3.17551,3149.1,3148.1,0.1622983]
[1738187018850,3.17561,3149.0,3148.4,3.17613]
[1738187019798,3.17541,3149.2,3148.2,3.17641]
[1738187019955,3.0,3149.3,3148.7,3.17584]
[1738187020363,3.0,3149.3,3148.2,3.17641]
[1738187020364,0.8253,3149.4,3148.8,3.17571]
[1738187020571,3.8253,3149.4,3148.8,3.17571]
[1738187020794,3.8253,3149.4,3149.0,3.1756]
[1738187020995,3.8253,3149.4,3148.8,3.17571]
[1738187021362,7.00055,3149.4,3148.8,3.17571]
[1738187021565,0.8253,3149.4,3148.1,0.1622983]
[1738187021805,4.00053,3149.4,3148.7,3.17581]
[1738187022012,7.00053,3149.4,3148.7,3.17581]
[1738187022522,3.17531,3149.3,3148.7,3.17581]
[1738187022809,3.8253,3149.4,3148.8,3.17571]
[1738187022810,7.00054,3149.4,3148.8,3.17571]
[1738187023039,0.8253,3149.4,3148.9,3.1757]
[1738187023222,0.8253,3149.4,3148.8,3.17577]
[1738187023623,3.17537,3149.3,3148.7,3.17591]
[1738187023849,0.8253,3149.4,3148.8,3.17574]
[1738187024050,3.0,3149.6,3149.1,3.17546]
[1738187024195,0.7897,3149.8,3149.4,3.17514]
[1738187024398,0.7897,3149.8,3149.3,3.17527]
[1738187024599,3.96456,3149.8,3149.2,3.17538]
[1738187025048,3.96458,3149.8,3149.1,3.17547]
[1738187025211,3.17491,3149.7,3149.1,3.17547]
[1738187025539,0.7897,3149.8,3149.3,3.17529]
[1738187025847,0.7897,3149.8,3149.1,3.810575]
[1738187026017,0.7897,3149.8,3148.9,6.35142]
[1738187026217,0.7897,3149.8,3149.2,3.17533]
[1738187026518,3.9645,3149.8,3149.2,3.17533]
[1738187027046,3.9645,3149.8,3149.0,3.17554]
[1738187027342,3.9645,3149.8,3148.8,3.17578]
[1738187027343,3.17523,3149.4,3148.8,3.17573]
[1738187027507,3.17531,3149.3,3148.8,3.17573]
[1738187027911,3.17523,3149.4,3148.8,3.17573]
[1738187028115,3.0,3149.5,3148.9,3.17568]
[1738187028310,0.7897,3149.8,3149.3,3.17525]
[1738187028614,0.7897,3149.8,3149.4,3.17517]
[1738187028838,0.7897,3149.8,3149.3,3.17525]
[1738187028839,6.9645,3149.8,3149.3,3.17525]
[1738187029043,3.7897,3149.8,3149.3,3.17525]
[1738187029355,1.45041262,3150.2,3149.6,3.175]
[1738187029555,3.17451,3150.1,3149.4,3.17512]
[1738187029756,3.1746,3150.0,3149.4,3.17512]
[1738187029919,7.46394526,3150.2,3149.4,3.17512]
[1738187030124,7.46394526,3150.2,3149.6,3.17499]
[1738187030321,1.28947526,3150.2,3149.7,3.17484]
[1738187030531,0.7646,3150.6,3149.0,3.1756]
[1738187030738,3.93867,3150.6,3149.9,3.17462]
[1738187030974,3.17421,3150.4,3149.7,3.17483]
[1738187031175,3.17421,3150.4,3149.8,3.17477]
[1738187031475,0.7646,3150.6,3149.7,0.8192]
[1738187031630,0.7646,3150.6,3150.1,3.17446]
[1738187032078,3.17411,3150.5,3150.0,3.17451]
[1738187032260,3.1742,3150.4,3149.8,3.17478]
[1738187032464,3.17431,3150.3,3149.8,3.17478]
[1738187032651,3.17431,3150.3,3149.6,3.17497]
[1738187032850,3.17443,3150.2,3149.6,3.17493]
[1738187033050,3.17422,3150.4,3149.7,3.17482]
[1738187033235,0.317422,3150.3,3149.8,3.1748]
[1738187033769,3.93862,3150.6,3150.0,3.17459]
[1738187033933,0.7646,3150.6,3149.4,0.8192]
[1738187034163,0.7646,3150.6,3150.1,3.17446]
[1738187034347,3.7597,3150.9,3150.1,3.17446]
[1738187034567,4.81505914,3150.9,3150.4,3.1741]
[1738187034738,0.7597,3150.9,3149.5,0.565]
[1738187035080,3.93301,3151.3,3150.7,3.17388]
[1738187035241,3.0,3151.2,3150.8,3.17378]
[1738187035435,3.0,3151.3,3150.3,0.8214]
[1738187035635,3.87379,3151.3,3150.7,3.17388]
[1738187036080,0.8315,3151.5,3150.3,0.8214]
[1738187036081,3.824,3151.5,3151.0,3.17354]
[1738187036381,3.1732,3151.4,3150.8,3.17371]
[1738187036585,3.1732,3151.4,3150.9,3.17369]
[1738187036783,3.1732,3151.4,3150.6,3.17396]
[1738187036784,3.1732,3151.4,3150.8,3.17378]
[1738187036962,3.1732,3151.4,3150.6,3.17396]
[1738187037167,3.17336,3151.3,3150.7,3.17389]
[1738187037782,0.69972,3151.4,3150.9,3.17369]
[1738187037994,0.69972,3151.4,3150.9,3.17363]
[1738187038200,3.17283,3151.8,3151.2,3.17338]
[1738187038399,3.17283,3151.8,3150.5,3.17406]
[1738187038559,3.173,3151.6,3151.0,3.1735]
[1738187039463,3.1732,3151.4,3150.6,6.34788]
[1738187039700,0.8264,3151.3,3150.4,3.17419]
[1738187039885,3.17363,3151.0,3150.4,3.17419]
[1738187040053,3.8264,3151.3,3150.7,3.1738]
[1738187040260,0.699963,3151.2,3150.5,3.17403]
[1738187040615,0.8264,3151.3,3150.9,3.17363]
[1738187040755,0.8282,3151.6,3151.0,3.17359]
[1738187041250,3.17309,3151.5,3150.8,3.17372]